[Event "2nd Gujarat Open 2019"]
[Site "Ahmedabad, Gujarat"]
[Date "2019.09.27"]
[Round "8.27"]
[White "Saranya, J."]
[Black "Gandhi, Anish"]
[Result "1-0"]
[ECO "B91"]
[WhiteElo "2022"]
[BlackElo "2201"]
[Annotator "NA"]
[PlyCount "91"]
[EventDate "2019.09.22"]
[EventType "swiss"]
[EventCountry "IND"]
[SourceTitle "playchess.com"]
[Source "ChessBase"]
[SourceQuality "1"]
[TimeControl "5400+30"]

1. e4 {[%emt 0:01:00]} c5 {[%emt 0:02:37]} 2. Nf3 {[%emt 0:00:06]} d6 {[%emt 0:00:05]} 3. d4 {[%emt 0:00:03]} cxd4 {[%emt 0:00:04]} 4. Nxd4 {[%emt 0:00:04]} Nf6 {[%emt 0:00:05]} 5. Nc3 {[%emt 0:00:05]} a6 {[%emt 0:00:04]} 6. g3 {[%emt 0:00:03]} e5 {[%emt 0:00:06]} 7. Nde2 {[%emt 0:00:03]} Be7 {[%emt 0:00:27]} 8. Bg2 {[%emt 0:00:06]} O-O {[%emt 0:00:33]} 9. O-O {[%emt 0:01:24]} Be6 {[%emt 0:04:51]} 10. h3 {[%emt 0:03:01]} b5 {[%emt 0:01:17]} 11. g4 {[%emt 0:07:20]} Nbd7 {[%emt 0:04:37]} 12. Nd5 {[%emt 0:07:33]} Bxd5 {[%emt 0:03:18]} 13. exd5 {[%emt 0:00:05]} Nc5 {[%emt 0:01:55]} 14. f4 {[%emt 0:09:39]} Nfd7 {[%emt 0:01:41]} 15. Be3 {[%emt 0:07:04]} Rc8 {[%emt 0:02:00]} 16. b3 {[%emt 0:06:07]} Re8 {[%emt 0:02:16]} 17. fxe5 {[%emt 0:06:55]} Nxe5 {[%emt 0:00:44]} 18. Qd2 {[%emt 0:05:19]} g6 {[%emt 0:00:58]} 19. Nd4 {[%emt 0:02:57]} Bf6 {[%emt 0:05:00]} 20. Rae1 {[%emt 0:08:53]} Bg7 {[%emt 0:03:58]} 21. Qf2 {[%emt 0:06:45]} Qc7 {[%emt 0:03:47]} 22. Nc6 {[%emt 0:03:47]} Ncd7 {[%emt 0:09:49]} 23. Bd4 {[%emt 0:08:47]} Ra8 {[%emt 0:03:08]} 24. c4 {[%emt 0:05:38]} f6 {[%emt 0:03:22]} 25. Qc2 {[%emt 0:06:29]} bxc4 {[%emt 0:06:52]} 26. bxc4 {[%emt 0:00:13]} Bh6 {[%emt 0:00:30]} 27. Be4 {[%emt 0:01:54]} Kg7 {[%emt 0:02:11]} 28. Re2 {[%emt 0:01:13]} Nc5 {[%emt 0:02:18]} 29. Bg2 {[%emt 0:01:00]} Bg5 {[%emt 0:01:09]} 30. Bxc5 {[%emt 0:00:52]} dxc5 {[%emt 0:00:28]} 31. Nxe5 {[%emt 0:00:10]} fxe5 {[%emt 0:04:23]} 32. d6 {[%emt 0:00:22]} Qxd6 {[%emt 0:00:11]} 33. Rd1 {[%emt 0:00:42]} Qe7 {[%emt 0:01:38]} 34. Bxa8 {[%emt 0:00:18]} Rxa8 {[%emt 0:00:01]} 35. Qe4 {[%emt 0:00:54]} Re8 {[%emt 0:00:04]} 36. Qc6 {[%emt 0:00:28]} Kh6 {[%emt 0:00:19]} 37. Rd7 {[%emt 0:00:20]} Qf8 {[%emt 0:01:46]} 38. Qc7 {[%emt 0:00:25]} Qh8 {[%emt 0:00:19]} 39. Kg2 {[%emt 0:00:39]} e4 {[%emt 0:00:17]} 40. Rd5 {[%emt 0:00:31]} Qc3 {[%emt 0:01:47]} 41. Rf2 {[%emt 0:00:36]} e3 {[%emt 0:01:45]} 42. h4 {[%emt 0:00:18]} Be7 {[%emt 0:13:34]} 43. Qf4+ {[%emt 0:00:04]} Kg7 {[%emt 0:00:02]} 44. Qf7+ {[%emt 0:00:05]} Kh6 {[%emt 0:00:04]} 45. g5+ {[%emt 0:01:08]} Kh5 {[%emt 0:00:02]} 46. Qf3+ {[%emt 0:00:05]} 1-0

[Event "2nd Gujarat Open 2019"]
[Site "Ahmedabad, Gujarat"]
[Date "2019.09.27"]
[Round "8.28"]
[White "Chokshi, Manthan J."]
[Black "Kshatriya Nitin Vekhande"]
[Result "1-0"]
[ECO "B23"]
[WhiteElo "2170"]
[BlackElo "1926"]
[Annotator "NA"]
[PlyCount "139"]
[EventDate "2019.09.22"]
[EventType "swiss"]
[EventCountry "IND"]
[SourceTitle "playchess.com"]
[Source "ChessBase"]
[SourceQuality "1"]
[TimeControl "5400+30"]

1. e4 {[%emt 0:00:00]} c5 {[%emt 0:00:00]} 2. Nc3 {[%emt 0:00:00]} g6 {[%emt 0:00:00]} 3. g3 {[%emt 0:00:00]} Bg7 {[%emt 0:00:00]} 4. Bg2 {[%emt 0:00:00]} Nc6 {[%emt 0:00:00]} 5. d3 {[%emt 0:00:02]} e6 {[%emt 0:00:00]} 6. Be3 {[%emt 0:00:14]} b6 {[%emt 0:00:23]} 7. Qd2 {[%emt 0:00:18]} Nge7 {[%emt 0:00:26]} 8. Bh6 {[%emt 0:00:19]} O-O {[%emt 0:11:18]} 9. h4 {[%emt 0:00:51]} Nd4 {[%emt 0:00:31]} 10. O-O-O {[%emt 0:04:09]} Nec6 {[%emt 0:18:50]} 11. h5 {[%emt 0:24:12]} Bxh6 {[%emt 0:01:59]} 12. Qxh6 {[%emt 0:00:34]} g5 {[%emt 0:00:11]} 13. f4 {[%emt 0:13:59]} f6 {[%emt 0:04:54]} 14. fxg5 {[%emt 0:04:53]} fxg5 {[%emt 0:00:37]} 15. Nh3 {[%emt 0:00:43]} Qf6 {[%emt 0:09:43]} 16. Qxf6 {[%emt 0:00:35]} Rxf6 {[%emt 0:01:17]} 17. Nxg5 {[%emt 0:00:02]} Ne5 {[%emt 0:06:59]} 18. Rdf1 {[%emt 0:05:42]} Rxf1+ {[%emt 0:00:48]} 19. Bxf1 {[%emt 0:16:48]} Bb7 {[%emt 0:00:51]} 20. Bg2 {[%emt 0:10:05]} Ng4 {[%emt 0:01:30]} 21. Kd2 {[%emt 0:02:18]} h6 {[%emt 0:10:31]} 22. Nf3 {[%emt 0:03:50]} Rf8 {[%emt 0:01:17]} 23. Nxd4 {[%emt 0:00:32]} cxd4 {[%emt 0:01:10]} 24. Nd1 {[%emt 0:00:22]} Ne3 {[%emt 0:02:28]} 25. Bh3 {[%emt 0:01:25]} Ba6 {[%emt 0:10:38]} 26. Re1 {[%emt 0:01:48]} Rf3 {[%emt 0:05:36]} 27. Nxe3 {[%emt 0:00:52]} Rxg3 {[%emt 0:01:16]} 28. Bf1 {[%emt 0:00:19]} dxe3+ {[%emt 0:01:02]} 29. Rxe3 {[%emt 0:00:04]} Rg5 {[%emt 0:00:10]} 30. Be2 {[%emt 0:00:13]} d6 {[%emt 0:02:14]} 31. Rf3 {[%emt 0:01:34]} Kg7 {[%emt 0:00:38]} 32. Rf4 {[%emt 0:00:08]} e5 {[%emt 0:01:57]} 33. Rf2 {[%emt 0:02:20]} Bc8 {[%emt 0:00:07]} 34. Kc3 {[%emt 0:00:13]} Bd7 {[%emt 0:01:55]} 35. Kc4 {[%emt 0:00:37]} Bc6 {[%emt 0:01:05]} 36. c3 {[%emt 0:04:02]} a6 {[%emt 0:00:46]} 37. a3 {[%emt 0:02:07]} Rg3 {[%emt 0:01:24]} 38. a4 {[%emt 0:01:24]} b5+ {[%emt 0:02:31]} 39. axb5 {[%emt 0:00:05]} Bxb5+ {[%emt 0:00:30]} 40. Kd5 {[%emt 0:00:10]} Bxd3 {[%emt 0:00:07]} 41. Kxd6 {[%emt 0:00:10]} Bxe4 {[%emt 0:00:25]} 42. Kxe5 {[%emt 0:00:20]} Bb7 {[%emt 0:00:14]} 43. Bc4 {[%emt 0:00:18]} Rg5+ {[%emt 0:00:20]} 44. Rf5 {[%emt 0:00:19]} Bc8 {[%emt 0:00:27]} 45. Be6 {[%emt 0:01:37]} Bb7 {[%emt 0:01:27]} 46. Rxg5+ {[%emt 0:01:02]} hxg5 {[%emt 0:00:06]} 47. Bg4 {[%emt 0:00:02]} Bc6 {[%emt 0:00:32]} 48. b4 {[%emt 0:01:08]} Bb5 {[%emt 0:00:45]} 49. Kd4 {[%emt 0:01:00]} Kh6 {[%emt 0:01:31]} 50. c4 {[%emt 0:00:05]} Be8 {[%emt 0:00:25]} 51. c5 {[%emt 0:00:01]} Bxh5 {[%emt 0:01:03]} 52. Bxh5 {[%emt 0:00:07]} Kxh5 {[%emt 0:00:14]} 53. c6 {[%emt 0:00:06]} g4 {[%emt 0:00:11]} 54. c7 {[%emt 0:00:13]} g3 {[%emt 0:00:16]} 55. c8=Q {[%emt 0:00:18]} Kh4 {[%emt 0:00:07]} 56. Ke3 {[%emt 0:00:13]} g2 {[%emt 0:00:26]} 57. Kf2 {[%emt 0:00:09]} a5 {[%emt 0:00:05]} 58. Qh8+ {[%emt 0:00:22]} Kg4 {[%emt 0:00:08]} 59. bxa5 {[%emt 0:00:22]} g1=Q+ {[%emt 0:00:14]} 60. Kxg1 {[%emt 0:00:02]} Kf5 {[%emt 0:00:08]} 61. Qd4 {[%emt 0:00:04]} Ke6 {[%emt 0:00:08]} 62. Qc5 {[%emt 0:00:08]} Kf6 {[%emt 0:00:44]} 63. Qd5 {[%emt 0:00:02]} Kg6 {[%emt 0:00:05]} 64. Qe5 {[%emt 0:00:05]} Kf7 {[%emt 0:00:04]} 65. Qd6 {[%emt 0:00:03]} Kg7 {[%emt 0:00:05]} 66. Qe6 {[%emt 0:00:03]} Kh8 {[%emt 0:00:08]} 67. Qd7 {[%emt 0:00:04]} Kg8 {[%emt 0:00:03]} 68. a6 {[%emt 0:00:04]} Kf8 {[%emt 0:00:03]} 69. a7 {[%emt 0:00:02]} Kg8 {[%emt 0:00:03]} 70. a8=Q# {[%emt 0:00:07]} 1-0

[Event "2nd Gujarat Open 2019"]
[Site "Ahmedabad, Gujarat"]
[Date "2019.09.27"]
[Round "8.29"]
[White "Bidhar, Rutumbara"]
[Black "Harshita Guddanti"]
[Result "1/2-1/2"]
[ECO "C68"]
[WhiteElo "1847"]
[BlackElo "2168"]
[Annotator "NA"]
[PlyCount "91"]
[EventDate "2019.09.22"]
[EventType "swiss"]
[EventCountry "IND"]
[SourceTitle "playchess.com"]
[Source "ChessBase"]
[SourceQuality "1"]
[TimeControl "5400+30"]

1. e4 {[%emt 0:00:00]} e5 {[%emt 0:00:00]} 2. Nf3 {[%emt 0:00:07]} Nc6 {[%emt 0:00:00]} 3. Bb5 {[%emt 0:00:06]} a6 {[%emt 0:00:00]} 4. Bxc6 {[%emt 0:00:08]} dxc6 {[%emt 0:00:06]} 5. O-O {[%emt 0:00:06]} Bg4 {[%emt 0:02:03]} 6. h3 {[%emt 0:00:20]} h5 {[%emt 0:03:54]} 7. d3 {[%emt 0:00:10]} Qf6 {[%emt 0:08:49]} 8. Nbd2 {[%emt 0:01:45]} Bc5 {[%emt 0:02:03]} 9. Nc4 {[%emt 0:04:16]} Bxf3 {[%emt 0:05:41]} 10. Qxf3 {[%emt 0:00:15]} Qxf3 {[%emt 0:00:57]} 11. gxf3 {[%emt 0:00:06]} f6 {[%emt 0:06:05]} 12. f4 {[%emt 0:03:45]} b5 {[%emt 0:02:37]} 13. Na5 {[%emt 0:02:40]} Ne7 {[%emt 0:02:59]} 14. Kh1 {[%emt 0:08:21]} Kd7 {[%emt 0:11:42]} 15. Bd2 {[%emt 0:14:35]} Raf8 {[%emt 0:11:31]} 16. fxe5 {[%emt 0:05:30]} fxe5 {[%emt 0:00:07]} 17. f4 {[%emt 0:02:41]} exf4 {[%emt 0:07:54]} 18. Bxf4 {[%emt 0:01:12]} Rf7 19. Nb3 {[%emt 0:05:01]} Bb6 {[%emt 0:05:39]} 20. Bg5 {[%emt 0:02:55]} Rhf8 {[%emt 0:02:29]} 21. Rxf7 {[%emt 0:02:24]} Rxf7 {[%emt 0:00:04]} 22. Nd2 {[%emt 0:00:24]} Ng6 23. Rf1 {[%emt 0:04:03]} Ne5 {[%emt 0:11:30]} 24. Kg2 {[%emt 0:03:44]} Ke6 {[%emt 0:02:34]} 25. Nf3 {[%emt 0:01:49]} Nxf3 {[%emt 0:05:42]} 26. Rxf3 {[%emt 0:00:08]} Rxf3 {[%emt 0:00:43]} 27. Kxf3 {[%emt 0:00:05]} c5 {[%emt 0:01:00]} 28. Be3 {[%emt 0:01:58]} Kf6 {[%emt 0:02:08]} 29. c3 {[%emt 0:03:08]} a5 {[%emt 0:01:39]} 30. b3 {[%emt 0:05:34]} c4 {[%emt 0:03:22]} 31. d4 {[%emt 0:06:20]} cxb3 {[%emt 0:00:07]} 32. axb3 {[%emt 0:00:04]} a4 {[%emt 0:00:52]} 33. bxa4 {[%emt 0:00:54]} bxa4 {[%emt 0:00:05]} 34. Bc1 {[%emt 0:00:22]} c5 {[%emt 0:01:02]} 35. Bb2 {[%emt 0:00:19]} a3 {[%emt 0:01:04]} 36. Bxa3 {[%emt 0:00:10]} cxd4 {[%emt 0:00:05]} 37. cxd4 {[%emt 0:00:04]} Bxd4 {[%emt 0:00:08]} 38. Bc1 {[%emt 0:01:33]} g5 {[%emt 0:00:14]} 39. Bd2 {[%emt 0:00:11]} Be5 {[%emt 0:00:15]} 40. Ba5 {[%emt 0:00:33]} Ke6 {[%emt 0:00:40]} 41. Bd2 {[%emt 0:00:35]} Bf6 {[%emt 0:00:25]} 42. Bc1 {[%emt 0:00:09]} Be7 {[%emt 0:00:11]} 43. Bb2 {[%emt 0:00:20]} Bf6 {[%emt 0:00:08]} 44. Bc1 {[%emt 0:00:03]} Be7 {[%emt 0:00:05]} 45. Bb2 {[%emt 0:00:05]} Bf6 {[%emt 0:00:04]} 46. Bc1 1/2-1/2

[Event "2nd Gujarat Open 2019"]
[Site "Ahmedabad, Gujarat"]
[Date "2019.09.27"]
[Round "8.30"]
[White "Joshi, Govind Ballabh"]
[Black "Adarsh Tripathi"]
[Result "1-0"]
[ECO "B70"]
[WhiteElo "2118"]
[BlackElo "1915"]
[Annotator "NA"]
[PlyCount "69"]
[EventDate "2019.09.22"]
[EventType "swiss"]
[EventCountry "IND"]
[SourceTitle "playchess.com"]
[Source "ChessBase"]
[SourceQuality "1"]
[TimeControl "5400+30"]

1. e4 {[%emt 0:00:00]} c5 {[%emt 0:00:00]} 2. Nf3 {[%emt 0:00:00]} g6 {[%emt 0:00:00]} 3. d4 {[%emt 0:02:02]} cxd4 {[%emt 0:00:00]} 4. Nxd4 {[%emt 0:00:04]} Nf6 {[%emt 0:00:00]} 5. Nc3 {[%emt 0:01:38]} d6 {[%emt 0:00:00]} 6. Be2 {[%emt 0:01:19]} Bg7 {[%emt 0:00:00]} 7. O-O {[%emt 0:01:59]} O-O {[%emt 0:00:06]} 8. Re1 {[%emt 0:03:23]} Nc6 {[%emt 0:00:09]} 9. Nb3 {[%emt 0:00:05]} Be6 {[%emt 0:00:05]} 10. Bf1 {[%emt 0:00:20]} Rc8 {[%emt 0:01:00]} 11. Nd5 {[%emt 0:02:05]} Ne5 {[%emt 0:06:42]} 12. Bg5 {[%emt 0:05:12]} Nc4 {[%emt 0:02:05]} 13. Bxc4 {[%emt 0:10:06]} Rxc4 {[%emt 0:00:02]} 14. Bxf6 {[%emt 0:00:11]} exf6 {[%emt 0:00:07]} 15. c3 {[%emt 0:00:05]} Re8 {[%emt 0:01:36]} 16. Qd3 {[%emt 0:02:10]} Rc8 {[%emt 0:02:06]} 17. Nd4 {[%emt 0:09:33]} Bxd5 {[%emt 0:02:15]} 18. exd5 {[%emt 0:02:08]} Re5 {[%emt 0:01:35]} 19. Nf3 {[%emt 0:01:02]} Rxe1+ {[%emt 0:00:08]} 20. Rxe1 {[%emt 0:00:02]} f5 {[%emt 0:00:21]} 21. Qb5 {[%emt 0:02:46]} Qc7 {[%emt 0:00:45]} 22. h4 {[%emt 0:06:04]} Bf6 {[%emt 0:01:25]} 23. h5 {[%emt 0:06:29]} Kg7 {[%emt 0:00:37]} 24. Qb4 {[%emt 0:02:29]} Qc5 {[%emt 0:27:28]} 25. Qxb7 {[%emt 0:01:41]} g5 {[%emt 0:01:52]} 26. Nd4 {[%emt 0:02:59]} Bxd4 {[%emt 0:00:09]} 27. cxd4 {[%emt 0:00:01]} Qc7 {[%emt 0:01:56]} 28. Qa6 {[%emt 0:05:47]} Rb8 {[%emt 0:00:40]} 29. Qc6 {[%emt 0:02:13]} Qa5 {[%emt 0:01:01]} 30. h6+ {[%emt 0:01:29]} Kxh6 {[%emt 0:00:10]} 31. Qxd6+ {[%emt 0:00:07]} Kg7 {[%emt 0:00:54]} 32. Re7 {[%emt 0:02:29]} Rb6 {[%emt 0:00:43]} 33. Qe5+ {[%emt 0:00:56]} Rf6 {[%emt 0:00:17]} 34. g3 {[%emt 0:13:46]} h6 {[%emt 0:02:01]} 35. d6 1-0

[Event "2nd Gujarat Open 2019"]
[Site "Ahmedabad, Gujarat"]
[Date "2019.09.27"]
[Round "8.31"]
[White "Aaditya Dhingra"]
[Black "Pimpalkhare Vedant"]
[Result "1/2-1/2"]
[ECO "C03"]
[WhiteElo "1880"]
[BlackElo "2104"]
[Annotator "NA"]
[PlyCount "80"]
[EventDate "2019.09.22"]
[EventType "swiss"]
[EventCountry "IND"]
[SourceTitle "playchess.com"]
[Source "ChessBase"]
[SourceQuality "1"]
[TimeControl "5400+30"]

1. e4 {[%emt 0:00:00]} e6 {[%emt 0:04:17]} 2. d4 {[%emt 0:00:00]} d5 {[%emt 0:00:06]} 3. Nd2 {[%emt 0:00:00]} a6 {[%emt 0:00:50]} 4. Ngf3 {[%emt 0:00:08]} c5 {[%emt 0:00:05]} 5. exd5 {[%emt 0:00:03]} exd5 {[%emt 0:00:05]} 6. c3 {[%emt 0:02:03]} Nc6 {[%emt 0:00:11]} 7. Bd3 {[%emt 0:01:21]} c4 {[%emt 0:03:41]} 8. Qe2+ {[%emt 0:07:54]} Qe7 {[%emt 0:06:37]} 9. Qxe7+ {[%emt 0:00:16]} Ngxe7 {[%emt 0:01:32]} 10. Be2 {[%emt 0:06:05]} Ng6 {[%emt 0:01:47]} 11. Nf1 {[%emt 0:00:31]} Bd6 {[%emt 0:00:47]} 12. g3 {[%emt 0:00:05]} f6 {[%emt 0:06:16]} 13. Ne3 {[%emt 0:01:57]} Be6 {[%emt 0:00:07]} 14. h4 {[%emt 0:00:03]} O-O {[%emt 0:01:28]} 15. O-O {[%emt 0:08:29]} b5 {[%emt 0:07:25]} 16. Re1 {[%emt 0:05:30]} Nge7 {[%emt 0:11:58]} 17. Bf1 {[%emt 0:03:58]} Kf7 {[%emt 0:02:13]} 18. Bd2 {[%emt 0:07:27]} Rfb8 {[%emt 0:09:39]} 19. Ng2 {[%emt 0:09:56]} b4 {[%emt 0:07:13]} 20. Bf4 {[%emt 0:02:02]} Bxf4 {[%emt 0:01:30]} 21. Nxf4 {[%emt 0:00:05]} Bf5 {[%emt 0:01:34]} 22. Nh2 {[%emt 0:21:38]} g5 {[%emt 0:07:23]} 23. hxg5 {[%emt 0:00:03]} fxg5 {[%emt 0:00:04]} 24. Nh3 {[%emt 0:00:18]} Kf6 {[%emt 0:00:59]} 25. g4 {[%emt 0:01:16]} Bd7 {[%emt 0:01:01]} 26. Bg2 {[%emt 0:00:50]} bxc3 {[%emt 0:02:38]} 27. bxc3 {[%emt 0:00:04]} Rb2 {[%emt 0:01:10]} 28. f4 {[%emt 0:00:20]} h6 {[%emt 0:02:45]} 29. Re3 {[%emt 0:07:05]} Rab8 {[%emt 0:03:35]} 30. Rf1 {[%emt 0:00:01]} Kg6 {[%emt 0:01:01]} 31. fxg5 {[%emt 0:02:24]} hxg5 {[%emt 0:00:06]} 32. Nf3 {[%emt 0:02:37]} Bxg4 {[%emt 0:01:14]} 33. Nfxg5 {[%emt 0:00:37]} Rb1 {[%emt 0:00:56]} 34. Rg3 {[%emt 0:01:59]} Rxf1+ {[%emt 0:00:32]} 35. Bxf1 {[%emt 0:00:38]} Kh5 {[%emt 0:01:27]} 36. Nf3 {[%emt 0:03:38]} Rf8 {[%emt 0:04:31]} 37. Be2 {[%emt 0:00:52]} Ng6 {[%emt 0:01:18]} 38. Nf2 {[%emt 0:01:20]} Nf4 {[%emt 0:00:50]} 39. Bd1 {[%emt 0:00:09]} Bxf3 {[%emt 0:01:15]} 40. Rxf3 {[%emt 0:01:07]} Kg5 1/2-1/2

[Event "2nd Gujarat Open 2019"]
[Site "Ahmedabad, Gujarat"]
[Date "2019.09.27"]
[Round "8.32"]
[White "Jay Kundaliya"]
[Black "Chaitanya Sairam Mogili"]
[Result "1-0"]
[ECO "C10"]
[WhiteElo "2097"]
[BlackElo "1908"]
[Annotator "NA"]
[PlyCount "67"]
[EventDate "2019.09.22"]
[EventType "swiss"]
[EventCountry "IND"]
[SourceTitle "playchess.com"]
[Source "ChessBase"]
[SourceQuality "1"]
[TimeControl "5400+30"]

1. e4 {[%emt 0:01:08]} e6 {[%emt 0:02:16]} 2. d4 {[%emt 0:00:10]} d5 {[%emt 0:00:04]} 3. Nc3 {[%emt 0:00:09]} dxe4 {[%emt 0:00:04]} 4. Nxe4 {[%emt 0:00:06]} Bd7 {[%emt 0:00:04]} 5. Nf3 {[%emt 0:01:45]} Bc6 {[%emt 0:00:05]} 6. Bd3 {[%emt 0:00:24]} Nd7 {[%emt 0:00:06]} 7. c3 {[%emt 0:04:35]} Ngf6 {[%emt 0:00:13]} 8. Nxf6+ {[%emt 0:00:08]} Nxf6 {[%emt 0:00:11]} 9. Bf4 {[%emt 0:06:01]} Bxf3 {[%emt 0:06:45]} 10. Qxf3 {[%emt 0:00:05]} c6 {[%emt 0:00:15]} 11. O-O {[%emt 0:02:07]} Bd6 {[%emt 0:03:36]} 12. Be5 {[%emt 0:01:16]} O-O {[%emt 0:07:00]} 13. Rad1 {[%emt 0:08:40]} Qe7 {[%emt 0:04:54]} 14. Rfe1 {[%emt 0:16:52]} Rad8 {[%emt 0:09:13]} 15. a3 {[%emt 0:09:15]} Rd7 {[%emt 0:10:44]} 16. Qh3 {[%emt 0:19:09]} g6 {[%emt 0:05:09]} 17. Qf3 {[%emt 0:10:03]} Ne8 {[%emt 0:06:48]} 18. g3 {[%emt 0:01:02]} Ng7 {[%emt 0:01:27]} 19. Bf6 {[%emt 0:02:15]} Qe8 {[%emt 0:01:03]} 20. d5 {[%emt 0:01:17]} Qc8 {[%emt 0:19:04]} 21. dxc6 {[%emt 0:01:39]} Qxc6 {[%emt 0:00:11]} 22. Qxc6 {[%emt 0:02:53]} bxc6 {[%emt 0:00:05]} 23. Be4 {[%emt 0:00:14]} Rc8 {[%emt 0:00:26]} 24. b4 {[%emt 0:02:55]} Ne8 {[%emt 0:01:15]} 25. Bg5 {[%emt 0:00:22]} f6 {[%emt 0:04:20]} 26. Be3 {[%emt 0:00:09]} Kf7 {[%emt 0:00:05]} 27. c4 {[%emt 0:00:40]} Ke7 {[%emt 0:03:04]} 28. f4 {[%emt 0:02:28]} c5 {[%emt 0:05:23]} 29. b5 {[%emt 0:00:12]} Ng7 {[%emt 0:01:24]} 30. g4 {[%emt 0:01:48]} e5 {[%emt 0:03:55]} 31. Bc6 {[%emt 0:02:02]} Rdc7 {[%emt 0:03:07]} 32. fxe5 {[%emt 0:00:03]} Bxe5 {[%emt 0:01:05]} 33. Bxc5+ {[%emt 0:00:09]} Kf7 {[%emt 0:00:20]} 34. Bd5+ {[%emt 0:00:51] Ra8} 1-0

[Event "2nd Gujarat Open 2019"]
[Site "Ahmedabad, Gujarat"]
[Date "2019.09.27"]
[Round "8.33"]
[White "Samal Ansuman"]
[Black "Kumar, Gaurav"]
[Result "1-0"]
[ECO "A45"]
[WhiteElo "1847"]
[BlackElo "2096"]
[Annotator "NA"]
[PlyCount "105"]
[EventDate "2019.09.22"]
[EventType "swiss"]
[EventCountry "IND"]
[SourceTitle "playchess.com"]
[Source "ChessBase"]
[SourceQuality "1"]
[TimeControl "5400+30"]

1. d4 {[%emt 0:03:43]} Nf6 {[%emt 0:00:00]} 2. e3 {[%emt 0:00:04]} e6 {[%emt 0:00:16]} 3. Bd3 {[%emt 0:00:04]} c5 {[%emt 0:00:12]} 4. c3 {[%emt 0:00:14]} b6 {[%emt 0:00:48]} 5. f4 {[%emt 0:00:29]} Bb7 {[%emt 0:00:58]} 6. Nf3 {[%emt 0:00:02]} d6 {[%emt 0:00:31]} 7. Nbd2 {[%emt 0:00:12]} Nbd7 {[%emt 0:01:34]} 8. O-O {[%emt 0:00:06]} Be7 {[%emt 0:03:21]} 9. Qe2 {[%emt 0:04:57]} O-O {[%emt 0:00:15]} 10. b3 {[%emt 0:07:01]} Nd5 {[%emt 0:02:23]} 11. c4 {[%emt 0:01:58]} Nc3 {[%emt 0:01:20]} 12. Qe1 {[%emt 0:11:12]} f5 {[%emt 0:00:28]} 13. e4 {[%emt 0:24:28]} cxd4 {[%emt 0:02:27]} 14. exf5 {[%emt 0:03:45]} Nc5 {[%emt 0:00:10]} 15. Nxd4 {[%emt 0:05:17]} Nxd3 {[%emt 0:01:31]} 16. Qxe6+ {[%emt 0:01:18]} Rf7 {[%emt 0:01:30]} 17. Qe3 {[%emt 0:01:01]} Bf6 {[%emt 0:00:24]} 18. Ne6 {[%emt 0:00:23]} Qe8 {[%emt 0:05:56]} 19. Qxd3 {[%emt 0:01:49]} Ne2+ {[%emt 0:01:05]} 20. Qxe2 {[%emt 0:00:05]} Bxa1 {[%emt 0:00:07]} 21. Ba3 {[%emt 0:00:03]} Bc3 {[%emt 0:04:11]} 22. Ne4 {[%emt 0:02:04]} Bd4+ {[%emt 0:06:26]} 23. Kh1 {[%emt 0:00:51]} Bc5 {[%emt 0:00:11]} 24. Bxc5 {[%emt 0:13:15]} Bxe4 {[%emt 0:00:46]} 25. Qxe4 {[%emt 0:00:07]} dxc5 {[%emt 0:01:33]} 26. Rd1 {[%emt 0:01:08]} Rc8 {[%emt 0:00:35]} 27. g4 {[%emt 0:04:06]} Rd7 {[%emt 0:01:28]} 28. Rd5 {[%emt 0:00:02]} Rxd5 {[%emt 0:01:17]} 29. cxd5 {[%emt 0:00:41]} b5 {[%emt 0:02:40]} 30. Qe5 {[%emt 0:08:47]} Qd7 {[%emt 0:02:11]} 31. Nxg7 {[%emt 0:02:04]} c4 {[%emt 0:03:58]} 32. Nh5 {[%emt 0:01:52]} Qf7 {[%emt 0:00:14]} 33. Nf6+ {[%emt 0:02:01]} Kf8 {[%emt 0:00:08]} 34. bxc4 {[%emt 0:00:57]} bxc4 {[%emt 0:00:13]} 35. Qd6+ {[%emt 0:00:29]} Kg7 {[%emt 0:01:51]} 36. Nh5+ {[%emt 0:00:13]} Kg8 {[%emt 0:00:06]} 37. Nf6+ {[%emt 0:00:09]} Kg7 {[%emt 0:03:03]} 38. Ne4 {[%emt 0:01:23]} Re8 {[%emt 0:03:57]} 39. Ng5 {[%emt 0:00:30]} Qf6 {[%emt 0:02:04]} 40. Qc7+ {[%emt 0:00:20]} Re7 {[%emt 0:01:29]} 41. Ne6+ {[%emt 0:00:42]} Qxe6 {[%emt 0:02:30]} 42. fxe6 {[%emt 0:00:07]} Rxc7 {[%emt 0:00:04]} 43. d6 {[%emt 0:00:04]} Rb7 {[%emt 0:02:16]} 44. d7 {[%emt 0:00:11]} c3 {[%emt 0:00:15]} 45. d8=Q {[%emt 0:00:48]} c2 {[%emt 0:00:09]} 46. Qd4+ Kg8 {[%emt 0:00:32]} 47. Qd8+ {[%emt 0:01:24]} Kg7 {[%emt 0:00:02]} 48. Qg5+ {[%emt 0:00:06]} Kh8 49. f5 {[%emt 0:00:56]} Rb1+ {[%emt 0:00:44]} 50. Kg2 {[%emt 0:00:02]} c1=Q 51. Qf6+ {[%emt 0:00:22]} Kg8 {[%emt 0:00:23]} 52. Qf7+ {[%emt 0:00:06]} Kh8 {[%emt 0:00:03]} 53. Qf8# 1-0

[Event "2nd Gujarat Open 2019"]
[Site "Ahmedabad, Gujarat"]
[Date "2019.09.27"]
[Round "8.34"]
[White "Barath Kalyan M"]
[Black "Chauhan, Joy"]
[Result "1/2-1/2"]
[ECO "A56"]
[WhiteElo "2092"]
[BlackElo "1872"]
[Annotator "NA"]
[PlyCount "46"]
[EventDate "2019.09.22"]
[EventType "swiss"]
[EventCountry "IND"]
[SourceTitle "playchess.com"]
[Source "ChessBase"]
[SourceQuality "1"]
[TimeControl "5400+30"]

1. d4 {[%emt 0:00:25]} Nf6 {[%emt 0:00:00]} 2. c4 {[%emt 0:01:19]} c5 {[%emt 0:00:35]} 3. Nf3 {[%emt 0:00:38]} cxd4 {[%emt 0:00:42]} 4. Nxd4 {[%emt 0:00:05]} e5 {[%emt 0:01:51]} 5. Nb5 {[%emt 0:00:46]} d5 {[%emt 0:00:53]} 6. cxd5 {[%emt 0:01:22]} Bc5 {[%emt 0:00:35]} 7. N5c3 {[%emt 0:02:04]} O-O {[%emt 0:01:35]} 8. e3 {[%emt 0:00:53]} e4 {[%emt 0:03:56]} 9. Be2 {[%emt 0:00:31]} Qe7 {[%emt 0:00:52]} 10. a3 {[%emt 0:01:21]} Rd8 {[%emt 0:02:25]} 11. b4 {[%emt 0:02:13]} Bd6 {[%emt 0:03:31]} 12. Ra2 {[%emt 0:07:59]} a6 {[%emt 0:04:18]} 13. Rd2 {[%emt 0:00:54]} b5 {[%emt 0:06:16]} 14. Bb2 {[%emt 0:02:09]} Nbd7 {[%emt 0:00:50]} 15. O-O {[%emt 0:18:53]} Nb6 {[%emt 0:10:23]} 16. Qb3 {[%emt 0:29:36]} Ng4 {[%emt 0:12:07]} 17. Bxg4 {[%emt 0:07:10]} Bxg4 {[%emt 0:01:36]} 18. Rd4 {[%emt 0:00:34]} Qh4 {[%emt 0:05:37]} 19. h3 {[%emt 0:02:43]} Bxh3 {[%emt 0:08:53]} 20. Nxe4 {[%emt 0:07:03]} Bxg2 {[%emt 0:01:01]} 21. Kxg2 {[%emt 0:02:13]} Qh2+ {[%emt 0:01:52]} 22. Kf3 {[%emt 0:00:05]} Qh5+ {[%emt 0:00:06]} 23. Kg2 {[%emt 0:00:13]} Qh2+ {[%emt 0:02:02]} 1/2-1/2